[Event "26th Hit Open-A 2022"]
[Site "Nova Gorica"]
[Date "2022.09.17"]
[Round "3.20"]
[White "Ronka, Erik"]
[Black "Devnani Kush"]
[Result "1/2-1/2"]
[ECO "B90"]
[WhiteElo "2248"]
[BlackElo "2095"]
[Annotator "TA"]
[PlyCount "98"]
[EventDate "2022.09.16"]
[EventType "swiss"]
[EventCountry "SLO"]
[SourceTitle "playchess.com"]
[Source "ChessBase"]
[SourceQuality "1"]
[TimeControl "5400+30"]

{[%evp 20,98,27,22,23,16,17,0,0,0,0,-9,-17,-11,0,-14,-8,-55,-56,-45,-55,-62,-40,-62,-63,-59,-62,-125,-87,-183,-177,-257,-233,-312,-294,-925,-897,-1017,-770,-754,-480,-512,-439,-528,-278,-380,-111,-92,-5,-237,-229,-570,-321,-259,0,0,47,0,613,589,29985,29986,29986,29987,29993,29994,29994,2756,2754,8,51,0,0,0,0,0,0,0,0,0,0]} 1. e4 {[%emt 0:00:49]} c5 {[%emt 0:00:07]} 2. Nf3 {[%emt 0:00:06]} d6 {[%emt 0:00:05]} 3. d4 {[%emt 0:00:18]} cxd4 {[%emt 0:00:09]} 4. Nxd4 {[%emt 0:00:03]} Nf6 {[%emt 0:00:08]} 5. Nc3 {[%emt 0:00:07]} a6 {[%emt 0:00:04]} 6. Be3 {[%emt 0:00:31]} e5 {[%emt 0:00:07]} 7. Nb3 {[%emt 0:00:07]} Be7 {[%emt 0:00:55]} 8. f3 {[%emt 0:00:22]} Be6 {[%emt 0:00:11]} 9. Qd2 {[%emt 0:00:43]} h5 {[%emt 0:00:07]} 10. Nd5 {[%emt 0:00:18]} Nxd5 {[%emt 0:02:32]} 11. exd5 {[%emt 0:00:07]} Bf5 {[%emt 0:00:05] B90: Sicilian Najdorf: Unusual White 6th moves, 6 Be3 Ng4 and 6 Be3 e5.} 12. Be2 {[%emt 0:00:46]} a5 $1 {[%emt 0:02:07][%mdl 4] outshines the older 12...Nd7.} 13. Rc1 {[%emt 0:07:28] [#]} Bh4+ $146 {[%emt 0:21:19]} ({Predecessor:} 13... a4 14. Na1 Nd7 15. c4 O-O 16. O-O Nc5 17. Nc2 Bg6 18. Na3 Rc8 19. Nb5 Qd7 20. Na7 Ra8 21. Nb5 Rac8 22. Na7 Ra8 23. Nb5 Rac8 {½-½ (23) Zwahr,P (2278)-Tisaj,D (2356) Innsbruck 2021}) 14. g3 {[%emt 0:01:22]} Be7 {[%emt 0:00:20]} 15. O-O {[%emt 0:04:05]} a4 {[%emt 0:00:32]} 16. Na1 {[%emt 0:00:11]} Bh3 {[%emt 0:14:21]} 17. Rf2 {[%emt 0:12:38]} Nd7 {[%emt 0:04:56]} 18. Bf1 {[%emt 0:07:45]} (18. c4 $11) 18... Bxf1 $15 {[%emt 0:01:48]} 19. Rfxf1 {[%emt 0:00:57]} h4 {[%emt 0:00:21]} 20. g4 {[%emt 0:04:20]} O-O {[%emt 0:05:18]} 21. c4 {[%emt 0:01:58]} f5 {[%emt 0:11:37]} 22. h3 {[%emt 0:01:16]} Qe8 {[%emt 0:15:57]} 23. b4 {[%emt 0:19:57]} (23. Nc2 $15) 23... axb3 {[%emt 0:01:23]} 24. axb3 {[%emt 0:00:45]} (24. Nxb3 $17 {was the only chance.} Qg6 25. Rce1) 24... Qg6 $19 {[%emt 0:01:56]} 25. b4 {[%emt 0:15:09]} (25. Qe2 $142) 25... fxg4 {[%emt 0:08:34]} 26. hxg4 {[%emt 0:01:26]} e4 {[%emt 0:01:41]} 27. fxe4 {[%emt 0:04:18]} (27. f4 Qxg4+ 28. Qg2 Qxg2+ 29. Kxg2) 27... Ne5 {[%emt 0:02:22]} 28. Qg2 {[%emt 0:02:04] Against Nf3+} Rxf1+ {[%emt 0:00:58]} 29. Rxf1 {[%emt 0:03:58]} Nxc4 {[%emt 0:00:14]} 30. Bf4 {[%emt 0:04:48]} Ra3 {[%emt 0:00:32] Inhibits Nb3.} 31. Nc2 {[%emt 0:02:55] Against Ne3} Ra2 {[%emt 0:01:07]} 32. Rf2 {[%emt 0:00:53]} Bf6 {[%emt 0:00:50] Prevents Nd4.} (32... Bd8 $19 {and Black stays clearly on top.} 33. Ne3 Nxe3 34. Bxe3 Ra3) 33. g5 $17 {[%emt 0:02:44] [#]} Be5 {[%emt 0:00:30]} (33... Bd8 $1 $17 {[%cal Rd8b6] Hoping for ...Bb6.} 34. Qg4 Qxe4) 34. Bxe5 $2 {[%emt 0:00:31]} (34. Qg4 $1 $11 {and White has nothing to worry.}) 34... Nxe5 $19 {[%emt 0:00:14]} 35. Nd4 $2 {[%emt 0:00:37]} (35. Ne3 {nothing else works.} Rxf2 36. Kxf2) 35... Rxf2 {[%emt 0:03:10]} 36. Kxf2 {[%emt 0:00:08][%mdl 4096] Endgame KQN-KQN} Nd3+ $2 {[%emt 0:00:18]} ({Black should play} 36... Qh5 $19 {And now ...h3 would win.} 37. Nf3 Nxf3 38. Qxf3 Qxg5) 37. Ke3 $11 {[%emt 0:01:07]} Nxb4 {[%emt 0:00:39]} (37... Ne5 $11 {feels stronger.} 38. Nf3 Qh5 39. Nxe5 dxe5) 38. Qg4 {[%emt 0:00:24]} (38. Ne6 $1 $14 Na6 39. Qg4) 38... h3 $2 {[%emt 0:00:40][%mdl 8192]} (38... Qe8 $11) 39. Qc8+ $18 {[%emt 0:00:20]} Kf7 {[%emt 0:00:34]} 40. Ne6 {[%emt 0:01:06][%csl Ge6][%cal Rc8f8]} Nxd5+ {[%emt 0:00:59]} 41. exd5 {[%emt 0:00:10][%csl Ge6][%cal Rc8f8]} Qf5 {[%emt 0:00:09]} 42. Qf8+ {[%emt 0:01:06]} Kg6 {[%emt 0:00:01]} 43. Qxg7+ {[%emt 0:00:33]} (43. Nf4+ $142 Kxg5 44. Qxg7+ Kh4 45. Kf3 Qd3+ 46. Nxd3 Kh5 47. Nf4+ Kh4 48. Qh6#) 43... Kh5 {[%emt 0:00:07]} 44. Nf4+ $2 {[%emt 0:00:42]} ({Better is} 44. Qh8+ $18 Kg4 45. Qd4+ Kg3 46. g6 Qf2+ 47. Kd3) 44... Kg4 $11 {[%emt 0:00:05] [#]} 45. Nxh3 {[%emt 0:00:26]} Qf3+ {[%emt 0:00:52] The position is equal.} 46. Kd4 {[%emt 0:00:22] Qd7+ is the strong threat.} Qd1+ {[%emt 0:00:04]} 47. Kc4 {[%emt 0:00:30]} Qa4+ {[%emt 0:00:19]} 48. Kd3 {[%emt 0:00:08] Intending Qd4+ and mate.} Qd1+ {[%emt 0:00:32]} 49. Kc4 {[%emt 0:00:41] Threatening mate with Nf2+.} Qa4+ {[%emt 0:00:59] Black defended with fortune.  Weighted Error Value: White=0.71/Black=0.91} 1/2-1/2

[Event "26th Hit Open-A 2022"]
[Site "Nova Gorica"]
[Date "2022.09.17"]
[Round "3.21"]
[White "Goroshkov, Maksym"]
[Black "Lohia, Sohum"]
[Result "1/2-1/2"]
[ECO "D24"]
[WhiteElo "2315"]
[BlackElo "2185"]
[Annotator "ChessBase"]
[PlyCount "105"]
[EventDate "2022.09.16"]
[EventType "swiss"]
[EventCountry "SLO"]
[SourceTitle "playchess.com"]
[Source "ChessBase"]
[SourceQuality "1"]
[TimeControl "5400+30"]

1. d4 {[%emt 0:01:55]} Nf6 {[%emt 0:00:09]} 2. Nf3 {[%emt 0:00:15]} e6 {[%emt 0:00:09]} 3. c4 {[%emt 0:00:08]} d5 {[%emt 0:00:20]} 4. Nc3 {[%emt 0:00:17]} dxc4 {[%emt 0:00:10]} 5. e3 {[%emt 0:00:58]} a6 {[%emt 0:00:13]} 6. a4 {[%emt 0:00:45]} b6 {[%emt 0:00:15]} 7. Bxc4 {[%emt 0:00:14]} Bb7 {[%emt 0:00:13]} 8. O-O {[%emt 0:00:28]} Bb4 {[%emt 0:00:17]} 9. Bd2 {[%emt 0:01:07]} O-O {[%emt 0:00:18]} 10. Ne4 {[%emt 0:03:37]} Bxd2 {[%emt 0:01:32]} 11. Nexd2 {[%emt 0:00:07]} Nbd7 {[%emt 0:00:31]} 12. Qe2 {[%emt 0:01:00]} c5 {[%emt 0:00:50]} 13. Rfd1 {[%emt 0:01:02]} Qe7 {[%emt 0:01:49]} 14. Rac1 {[%emt 0:01:48]} cxd4 {[%emt 0:01:39]} 15. exd4 {[%emt 0:00:35]} Nd5 {[%emt 0:02:36]} 16. Ne4 {[%emt 0:07:33]} h6 {[%emt 0:01:26]} 17. Ne5 {[%emt 0:03:33]} N7f6 {[%emt 0:14:05]} 18. Nxf6+ {[%emt 0:03:09]} Nxf6 {[%emt 0:08:42]} 19. Ba2 {[%emt 0:05:25]} Rac8 {[%emt 0:01:57]} 20. a5 {[%emt 0:06:55]} bxa5 {[%emt 0:01:23]} 21. Ng6 {[%emt 0:00:31]} fxg6 {[%emt 0:01:39]} 22. Qxe6+ {[%emt 0:00:04]} Qxe6 {[%emt 0:01:03]} 23. Bxe6+ {[%emt 0:00:05]} Kh7 {[%emt 0:00:11]} 24. Bxc8 {[%emt 0:00:04]} Rxc8 {[%emt 0:12:58]} 25. Rxc8 {[%emt 0:00:13]} Bxc8 {[%emt 0:00:02]} 26. Ra1 {[%emt 0:00:11]} Bd7 {[%emt 0:00:11]} 27. Rxa5 {[%emt 0:00:12]} Bb5 {[%emt 0:00:05]} 28. Ra1 {[%emt 0:00:30]} g5 {[%emt 0:00:22]} 29. f3 {[%emt 0:00:22]} Kg6 {[%emt 0:00:36]} 30. Re1 {[%emt 0:00:27]} Nd5 {[%emt 0:02:37]} 31. g3 {[%emt 0:02:32]} Nb4 {[%emt 0:00:56]} 32. h4 {[%emt 0:06:54]} gxh4 {[%emt 0:01:35]} 33. gxh4 {[%emt 0:00:04]} Nd3 {[%emt 0:01:35]} 34. Re2 {[%emt 0:00:14]} Kh5 {[%emt 0:02:42]} 35. d5 {[%emt 0:01:39]} Kxh4 {[%emt 0:01:42]} 36. Re7 {[%emt 0:00:50]} g6 {[%emt 0:01:30]} 37. d6 {[%emt 0:00:12]} Nc5 {[%emt 0:00:11]} 38. Kf2 {[%emt 0:00:20]} Nd7 {[%emt 0:00:51]} 39. Ke3 {[%emt 0:00:35]} Kg5 {[%emt 0:00:28]} 40. Rf7 {[%emt 0:02:06]} h5 {[%emt 0:02:25]} 41. f4+ {[%emt 0:00:35]} Kh6 {[%emt 0:04:38]} 42. Re7 {[%emt 0:01:21]} Bc6 {[%emt 0:01:21]} 43. f5 {[%emt 0:01:05]} h4 {[%emt 0:11:23]} 44. fxg6 {[%emt 0:01:06]} Kxg6 {[%emt 0:00:21]} 45. Kf4 {[%emt 0:00:24]} Kf6 {[%emt 0:01:41]} 46. Rh7 {[%emt 0:03:50]} Ne5 {[%emt 0:01:06]} 47. Ra7 {[%emt 0:01:26]} Bb5 {[%emt 0:00:53]} 48. Rh7 {[%emt 0:00:23]} Bd7 {[%emt 0:03:21]} 49. b4 {[%emt 0:02:21]} h3 {[%emt 0:01:44]} 50. Kg3 {[%emt 0:00:26]} Kg5 {[%emt 0:05:09]} 51. Re7 {[%emt 0:00:35]} Kf6 {[%emt 0:00:12]} 52. Rh7 {[%emt 0:00:05]} Kf5 {[%emt 0:00:34]} 53. Rxh3 {[%emt 0:00:41]} 1/2-1/2

[Event "26th Hit Open-A 2022"]
[Site "Nova Gorica"]
[Date "2022.09.17"]
[Round "3.23"]
[White "Schloffer, Jasmin-Denise"]
[Black "Lavrencic, Matic"]
[Result "0-1"]
[ECO "E46"]
[WhiteElo "2127"]
[BlackElo "2274"]
[Annotator "TA"]
[PlyCount "178"]
[EventDate "2022.09.16"]
[EventType "swiss"]
[EventCountry "SLO"]
[SourceTitle "playchess.com"]
[Source "ChessBase"]
[SourceQuality "1"]
[TimeControl "5400+30"]

{[%evp 9,178,3,-7,3,-11,0,0,0,0,-3,0,0,0,0,0,-13,0,0,0,0,18,21,11,12,6,1,0,-15,0,-33,-39,-66,-38,-71,-60,-75,-23,-15,-15,-11,-20,-12,-17,-8,-11,-22,-29,-48,-47,-47,-55,-52,-27,-25,-26,-49,-22,-37,-37,-41,-42,-53,-41,-59,-41,-45,-40,-46,-33,-56,-57,-52,-54,-69,-69,-76,-76,-76,-75,-77,-60,-76,-69,-69,-69,-76,-69,-69,-69,-69,-69,-76,-68,-76,-69,-91,-69,-90,-69,-69,-69,-69,-46,-69,-69,-69,-69,-69,0,-69,-68,-83,-69,-153,-90,-75,-25,-116,-114,-110,-118,-122,-130,-1008,-121,-215,-216,-348,-113,-401,-314,-285,-222,-258,-93,-95,-104,-842,-787,-643,-171,-173,-125,-563,-361,-535,-706,-635,-627,-666,-661,-601,-217,-1043,-1090,-823,-483,-433,-235,-594,-525,-447,-236,-1270,-1255,-29996,-29997,-29997,-29998,-29998,-29999]} 1. d4 {[%emt 0:00:03]} Nf6 {[%emt 0:00:04]} 2. c4 {[%emt 0:00:05]} e6 {[%emt 0:00:06]} 3. Nc3 {[%emt 0:00:04]} Bb4 {[%emt 0:00:04]} 4. e3 {[%emt 0:00:04]} O-O {[%emt 0:00:28]} 5. Nge2 {[%emt 0:00:03]} c6 {[%emt 0:00:36]} 6. a3 {[%emt 0:01:06] E46: Nimzo-Indian: Rubinstein: 4 e3 0-0 5 Ne2 without early Bd3.} Ba5 {[%emt 0:00:11]} 7. Qc2 {[%emt 0:00:04]} d5 {[%emt 0:00:32]} 8. Ng3 {[%emt 0:02:42] The position is equal.} Nbd7 {[%emt 0:01:04][%cal Bb8d7,Bd7b6,Bb6d5][%mdl 32]} 9. Be2 {[%emt 0:04:43]} dxc4 {[%emt 0:01:51]} 10. Bxc4 {[%emt 0:00:05]} e5 {[%emt 0:00:06]} 11. O-O {[%emt 0:01:44]} exd4 {[%emt 0:00:40]} 12. exd4 {[%emt 0:00:04]} Bc7 {[%emt 0:01:53]} 13. Ba2 {[%emt 0:03:23]} Nb6 {[%emt 0:01:19]} 14. Re1 {[%emt 0:00:09]} Nfd5 {[%emt 0:13:43]} 15. Nce4 {[%emt 0:06:53]} Nf4 {[%emt 0:16:31]} 16. Bxf4 {[%emt 0:06:27]} Bxf4 {[%emt 0:01:07]} 17. Rad1 {[%emt 0:00:05]} Nd5 {[%emt 0:05:42] [#]} 18. Bb1 $146 {[%emt 0:05:27]} ({Predecessor:} 18. Nc5 Bg4 19. f3 Bc8 20. Qe4 Qg5 21. Nf1 Bh3 22. Qc2 Ne3 23. Nxe3 Bxe3+ 24. Kh1 {1-0 (47) Sowray,P (2322)-Murphy,C (2313) England 2018}) 18... g6 {[%emt 0:02:14]} 19. Nc3 {[%emt 0:07:09]} Bg4 {[%emt 0:04:33]} 20. Nge2 {[%emt 0:12:43]} Bc7 {[%emt 0:03:03] Black is much more active.} 21. Nxd5 {[%emt 0:06:15]} Qxd5 {[%emt 0:00:21]} 22. Qe4 {[%emt 0:02:58]} Qh5 {[%emt 0:09:27]} (22... Qd7 $17 {And now ...Rfe8 would win.} 23. h3 Bxe2 24. Qxe2 Rae8) 23. h3 $11 {[%emt 0:01:28]} Be6 {[%emt 0:05:37]} 24. Nf4 {[%emt 0:02:29]} Bxf4 {[%emt 0:00:09]} 25. Qxf4 {[%emt 0:00:04]} Rad8 {[%emt 0:04:22]} 26. Be4 {[%emt 0:04:30]} Qb5 {[%emt 0:02:21]} 27. Rd2 {[%emt 0:05:21]} Rd7 {[%emt 0:00:50]} 28. Rc1 {[%emt 0:02:42]} Rfd8 {[%emt 0:03:18]} 29. Bf3 {[%emt 0:02:39]} Qb6 {[%emt 0:02:09][%cal Rd7d4]} 30. Rcd1 {[%emt 0:01:47]} Qa5 {[%emt 0:08:55]} 31. Qe3 {[%emt 0:02:08]} Rd6 {[%emt 0:01:09]} 32. Qc3 {[%emt 0:04:48]} Qb5 {[%emt 0:01:10]} 33. b4 {[%emt 0:01:27]} a6 {[%emt 0:02:41]} 34. Re1 {[%emt 0:01:35]} Qg5 {[%emt 0:00:20]} 35. Qe3 {[%emt 0:00:29]} Qf6 {[%emt 0:00:25][%cal Rd6d4]} 36. Red1 {[%emt 0:00:16]} Kg7 {[%emt 0:00:20]} 37. Qc3 {[%emt 0:05:20]} h5 {[%emt 0:00:17]} 38. Be4 {[%emt 0:00:55]} h4 {[%emt 0:01:23]} 39. a4 {[%emt 0:02:07]} Bd5 {[%emt 0:00:34]} 40. Bxd5 {[%emt 0:00:54]} Rxd5 {[%emt 0:00:05]} 41. a5 {[%emt 0:02:29]} Re8 {[%emt 0:00:30]} 42. Qd3 {[%emt 0:02:18]} Qd6 {[%emt 0:00:55]} 43. Qc3 {[%emt 0:00:24]} Re4 {[%emt 0:00:28]} 44. Rd3 {[%emt 0:00:46]} Qe7 {[%emt 0:05:03]} 45. Re3 {[%emt 0:00:28] [#]} Rxe3 $1 {[%emt 0:00:35]} 46. fxe3 $17 {[%emt 0:00:14][%mdl 4096] Endgame KQR-KQR} f5 {[%emt 0:00:30]} 47. Rf1 {[%emt 0:00:32]} Kh7 {[%emt 0:01:04]} 48. Qd2 {[%emt 0:01:02]} Rb5 {[%emt 0:00:16]} 49. Rb1 {[%emt 0:00:08]} Qe4 {[%emt 0:00:48]} 50. Rb2 {[%emt 0:00:04]} Kg7 {[%emt 0:00:09]} 51. Qc3 {[%emt 0:00:30]} Kf7 {[%emt 0:00:37]} 52. Qc4+ {[%emt 0:01:22]} Qe6 {[%emt 0:00:13]} 53. Qd3 {[%emt 0:00:21]} Kg7 {[%emt 0:01:45]} 54. Qc3 {[%emt 0:00:11]} Rd5 {[%emt 0:00:04]} 55. Rf2 {[%emt 0:00:13]} Kh7 {[%emt 0:00:46]} 56. Qd3 {[%emt 0:01:23]} Rb5 {[%emt 0:00:13]} 57. Rb2 {[%emt 0:00:11]} Qe7 {[%emt 0:00:17]} 58. Qc3 {[%emt 0:00:06]} Qe4 {[%emt 0:00:23]} 59. Qd2 $1 {[%emt 0:00:40]} g5 {[%emt 0:00:20]} 60. Qe2 {[%emt 0:01:08]} Kg6 {[%emt 0:00:16] Prevents Qh5+.} 61. Qd2 {[%emt 0:01:55] [#]} (61. Qf2 $15) 61... Rd5 {[%emt 0:00:23]} (61... g4 $142 $1 {Threatens to win with ...g3.} 62. Rb3 gxh3 63. gxh3 Kf6) 62. Qf2 {[%emt 0:00:47]} Qd3 {[%emt 0:03:05]} ({Black should try} 62... Rd8 $17) 63. Kh2 {[%emt 0:00:51]} (63. Qd2 $11 Qe4 64. Rb3) 63... Rd7 {[%emt 0:00:28] Hoping for ...Re7.} 64. Rd2 {[%emt 0:00:05]} Qe4 {[%emt 0:00:34]} 65. Qf3 {[%emt 0:00:13]} Qe6 {[%emt 0:00:18]} 66. Rf2 $2 {[%emt 0:00:20][%mdl 8192]} (66. Kg1 $17) 66... Re7 $2 {[%emt 0:00:16]} (66... g4 $19 {and Black stays clearly on top.} 67. Qe2 g3+ 68. Kg1 gxf2+ 69. Kxf2 Re7) 67. Re2 {[%emt 0:00:09]} (67. Rf1 $17 {is a better defense.}) 67... Qd6+ $19 {[%emt 0:00:08]} 68. g3 {[%emt 0:00:15]} (68. Kh1 {was worth a try.}) 68... Re4 $2 {[%emt 0:00:38]} ({Stronger than} 68... Qxb4 69. gxh4 Qd6+ 70. Kg1 $11) (68... hxg3+ $19 69. Kg2 Qxb4) 69. Kg2 $2 {[%emt 0:01:05][%mdl 8192]} (69. Rg2 $17 {only move.}) 69... hxg3 {[%emt 0:01:23]} 70. Qxg3 {[%emt 0:00:18]} Qxb4 {[%emt 0:00:33] aiming for ...f4.} 71. Qb8 {[%emt 0:00:23]} Qe7 $2 {[%emt 0:00:20]} (71... Qxa5 72. Qg8+ Kf6 73. Qf8+ Ke6 74. Qc8+ Kd6 75. Rb2 $15) (71... Qc4 $19 {is more deadly.} 72. Re1 Qd5) 72. Qg8+ $17 {[%emt 0:01:10]} Qg7 {[%emt 0:00:11]} 73. Qc8 $2 {[%emt 0:00:26][%mdl 8192]} (73. Qxg7+ $17 Kxg7 74. Kf3) 73... Qf7 $19 {[%emt 0:00:18]} 74. Qb8 {[%emt 0:01:07]} Re7 $2 {[%emt 0:00:25]} (74... f4 {( -> ...f3+)} 75. Kh2 fxe3) 75. Qd6+ {[%emt 0:00:21]} Qe6 {[%emt 0:00:12]} (75... Kh5 $19 76. Kf2 Re4) 76. Qb4 $2 {[%emt 0:00:12][%mdl 8192]} (76. Qxe6+ $17 {was the crucial defense.} Rxe6 77. Kf3) 76... Qe4+ {[%emt 0:00:23]} 77. Kf2 {[%emt 0:00:16]} (77. Kh2 {was necessary.} Kh5 78. Qb2) 77... f4 {[%emt 0:00:26]} ({Worse is} 77... g4 78. Qd6+ Re6 79. Qg3 $17) 78. Qd6+ {[%emt 0:00:32]} Kg7 {[%emt 0:00:17]} 79. Qc5 {[%emt 0:00:23]} fxe3+ {[%emt 0:01:11]} 80. Kg1 {[%emt 0:00:06]} Re6 $2 {[%emt 0:01:13]} (80... Kf6 81. Qd6+ Kf7) 81. Qc4 $2 {[%emt 0:01:24]} (81. Rg2 Rg6 82. Qe5+ Qxe5 83. dxe5) 81... Kg6 {[%emt 0:00:43]} 82. Qb3 {[%emt 0:00:20]} Re7 {[%emt 0:00:42]} 83. Qg8+ {[%emt 0:00:17]} Rg7 {[%emt 0:00:03]} (83... Kf6 $142 {...Re8 is the strong threat.} 84. Qh8+ Ke6 85. Qg8+ Kd7 86. Qxg5 Qxd4 87. Qg4+ Qxg4+ 88. hxg4 Re4) 84. Qd8 $2 {[%emt 0:00:30]} (84. Qb3 {nothing else works.}) 84... Kh7 {[%emt 0:00:13]} 85. Qf6 {[%emt 0:00:37]} Qf4 {[%emt 0:00:20]} (85... g4 $142 86. Qh4+ Kg8 87. Qd8+ Kf7 88. Qc7+ Kg6) 86. Qe6 $2 {[%emt 0:00:44]} (86. Qe5) 86... g4 {[%emt 0:00:24][%cal Bg5g4,Bg4h3][%mdl 32]} 87. Qxe3 {[%emt 0:00:45]} gxh3+ {[%emt 0:00:14] Black mates.} 88. Kh1 {[%emt 0:00:03]} Qf1+ {[%emt 0:00:22]} 89. Kh2 {[%emt 0:00:03]} Rg2+ {[%emt 0:00:05] Weighted Error Value: White=0.08 (flawless) /Black=0.07 (flawless)} 0-1

[Event "26th Hit Open-A 2022"]
[Site "Nova Gorica"]
[Date "2022.09.17"]
[Round "3.24"]
[White "Stevanic, David"]
[Black "Markocic, Tine"]
[Result "1/2-1/2"]
[ECO "B22"]
[WhiteElo "2261"]
[BlackElo "2034"]
[Annotator "TA"]
[PlyCount "125"]
[EventDate "2022.09.16"]
[EventType "swiss"]
[EventCountry "SLO"]
[SourceTitle "playchess.com"]
[Source "ChessBase"]
[SourceQuality "1"]
[TimeControl "5400+30"]

{[%evp 11,125,12,34,-4,41,41,33,33,71,41,34,48,36,44,44,50,44,38,38,8,38,0,0,0,5,0,0,0,0,0,0,0,0,-2,0,0,0,0,0,0,0,0,0,0,0,0,0,0,1,9,8,0,0,0,16,14,16,10,13,15,10,3,25,43,46,35,43,0,0,0,0,0,0,0,0,0,0,0,0,-8,0,0,0,-8,-8,-8,-8,-8,-8,-8,-8,-8,-8,-31,-31,-31,-31,-31,-31,-31,-31,-31,-31,-46,-46,-53,-53,-60,-60,-29950,-29962,-29965,-68,-110,0,-29942]} 1. e4 {[%emt 0:00:04]} c5 {[%emt 0:00:29]} 2. c3 {[%emt 0:01:21]} d5 {[%emt 0:00:39]} 3. exd5 {[%emt 0:00:05]} Qxd5 {[%emt 0:00:04]} 4. d4 {[%emt 0:00:03]} Nf6 {[%emt 0:01:14]} 5. Nf3 {[%emt 0:00:11]} Bg4 {[%emt 0:00:45]} 6. dxc5 {[%emt 0:00:56]} Qxc5 $1 {[%emt 0:12:56] 6...Qxc5 scores better than 6...Qxd1+.} 7. h3 {[%emt 0:00:44] B22: Sicilian: 2 c3.} Bxf3 {[%emt 0:05:37]} 8. Qxf3 {[%emt 0:00:27]} Nc6 {[%emt 0:00:16]} 9. Na3 {[%emt 0:03:48] [#] White is slightly better.} a6 $146 {[%emt 0:08:03]} ({Predecessor:} 9... e6 10. Nb5 Qe5+ 11. Be2 Nd5 12. c4 Bb4+ 13. Kf1 Nf6 14. Rb1 Rd8 15. Bf4 Qf5 {0-1 (55) Michalczak,T (2369)-Akesson,R (2461) Gausdal 2005}) 10. Be3 {[%emt 0:07:44]} Qd5 {[%emt 0:00:28]} 11. Be2 {[%emt 0:01:56]} Ne5 {[%emt 0:04:07] Against Nc4} 12. Qf4 {[%emt 0:17:10]} Nd3+ {[%emt 0:13:00]} 13. Bxd3 {[%emt 0:00:07]} Qxd3 {[%emt 0:00:08]} 14. Rd1 {[%emt 0:04:12]} Qe4 {[%emt 0:01:04]} 15. O-O {[%emt 0:07:11]} e6 {[%emt 0:07:48]} 16. Nc4 {[%emt 0:01:06]} Qxf4 {[%emt 0:00:23]} 17. Bxf4 {[%emt 0:00:06]} Rc8 {[%emt 0:03:58]} 18. Nd6+ {[%emt 0:05:07]} Bxd6 {[%emt 0:00:31]} 19. Bxd6 {[%emt 0:00:22]} Nd5 {[%emt 0:01:34]} 20. Rd4 {[%emt 0:08:37]} Rc6 {[%emt 0:05:38]} 21. Ba3 {[%emt 0:05:52]} b5 {[%emt 0:01:27] Against c4} 22. Re1 {[%emt 0:15:53] [#] And now Rxd5 would win.} Kd8 {[%emt 0:06:40]} 23. Bb4 {[%emt 0:02:43]} Kc8 {[%emt 0:01:38]} 24. Ba5 {[%emt 0:00:47]} Kd7 {[%emt 0:05:46]} 25. b3 {[%emt 0:05:05] Hoping for c4.} Rhc8 {[%emt 0:01:57]} 26. Ree4 {[%emt 0:00:05] c4 is the strong threat.} Rd6 {[%emt 0:02:15]} 27. c4 {[%emt 0:02:49]} Nf6 {[%emt 0:02:53]} 28. Rxd6+ {[%emt 0:00:35]} Kxd6 $11 {[%emt 0:00:06][%mdl 4096] Endgame KRB-KRN} 29. Bb4+ {[%emt 0:00:32]} Kc6 {[%emt 0:00:10]} 30. Rd4 {[%emt 0:00:53]} Rc7 {[%emt 0:03:05]} 31. Bf8 {[%emt 0:02:20]} g6 {[%emt 0:01:09]} 32. Bg7 {[%emt 0:02:10]} Ne8 {[%emt 0:00:09]} 33. Be5 {[%emt 0:00:20]} Rd7 {[%emt 0:00:36]} 34. Rxd7 {[%emt 0:01:02]} Kxd7 {[%emt 0:00:04]} 35. cxb5 {[%emt 0:00:08]} axb5 {[%emt 0:00:05] KB-KN} 36. Kf1 {[%emt 0:00:22]} b4 {[%emt 0:03:26]} 37. Ke2 {[%emt 0:00:46]} Kc6 {[%emt 0:00:07]} 38. Kd3 {[%emt 0:00:56] Threatens to win with Kc4.} Kd5 {[%emt 0:00:42]} 39. Bb2 {[%emt 0:02:23]} e5 {[%emt 0:00:49]} 40. a3 {[%emt 0:00:31]} e4+ {[%emt 0:00:07]} 41. Ke3 {[%emt 0:00:53]} bxa3 {[%emt 0:00:07]} 42. Bxa3 {[%emt 0:00:01]} Nc7 {[%emt 0:01:08]} 43. Be7 {[%emt 0:00:55]} f5 {[%emt 0:00:14]} 44. g3 {[%emt 0:00:56]} Ke5 {[%emt 0:01:14]} 45. Bf8 {[%emt 0:01:08]} g5 {[%emt 0:02:07]} 46. Bg7+ {[%emt 0:00:45]} Kd5 {[%emt 0:00:14]} 47. f3 {[%emt 0:00:42]} f4+ {[%emt 0:02:13]} 48. gxf4 {[%emt 0:00:09]} gxf4+ {[%emt 0:00:05]} 49. Kxf4 {[%emt 0:01:24]} Ne6+ {[%emt 0:00:04]} 50. Ke3 {[%emt 0:00:03]} Nxg7 {[%emt 0:00:37]} 51. fxe4+ {[%emt 0:00:05] KN-K3P} Ke5 {[%emt 0:01:10]} 52. b4 {[%emt 0:00:24]} Ne8 {[%emt 0:00:08]} 53. Kf3 $1 {[%emt 0:00:44]} Nf6 {[%emt 0:03:03]} 54. b5 {[%emt 0:00:56]} Nxe4 $15 {[%emt 0:00:07] KN-KPP} 55. b6 {[%emt 0:00:17] Black must now prevent b7.} Nd6 {[%emt 0:00:07]} 56. Kg4 {[%emt 0:00:09]} Kf6 {[%emt 0:00:11] ( -> ...Kg6)} 57. Kh5 {[%emt 0:00:34]} Kg7 {[%emt 0:00:06]} 58. Kg5 {[%emt 0:00:25]} h6+ {[%emt 0:00:10]} 59. Kh5 {[%emt 0:00:19]} Kh7 {[%emt 0:00:07]} 60. Kg4 $2 {[%emt 0:00:32][%mdl 8192] [#]} (60. h4 $15) 60... Kg6 {[%emt 0:00:09]} 61. Kf4 {[%emt 0:00:04]} Kf6 $2 {[%emt 0:02:18]} (61... h5 {mates} 62. Kg3 Kg5 63. h4+ Kf5 64. Kf3 Ke5 65. Ke2 Ke4 66. Kf2 Nb7 67. Ke2 Nd6 68. Kf2 Kf4 69. Ke2 Ke4) 62. Kg4 $1 {[%emt 0:00:11]} Kg6 $2 {[%emt 0:00:11][%mdl 8192]} (62... Nb7 $17 63. Kh5 Kg7) 63. Kf4 {[%emt 0:00:05][%mdl 32768] Weighted Error Value: White=0.20 (precise) /Black=0.20 (precise) . An unexpected result.} 1/2-1/2